fUST/lending_fUST_20250713
["ID","MTS","AMOUNT","RATE_DAILY","PERIOD"]
[371661989,1752381055703,-214.29528141,0.0002032,3]
[371661991,1752381055713,-12598.31844336,0.0002032,3]
[371661993,1752381055722,-2154.0,0.0002033,2]
[371661995,1752381055731,-408.521,0.0002033,2]
[371661997,1752381055741,-151.0,0.00020333,2]
[371661999,1752381055750,-151.0,0.00020333,2]
[371662001,1752381055759,-644.631289,0.00020333,2]
[371662003,1752381055769,-644.631289,0.00020333,2]
[371662005,1752381055779,-151.0,0.00020333,2]
[371662007,1752381055788,-193.293069,0.00020333,2]
[371662009,1752381055797,-193.293069,0.00020333,2]
[371662011,1752381055807,-339.675967,0.00020333,2]
[371662013,1752381055816,-339.675967,0.00020333,2]
[371662015,1752381055825,-460.0,0.00020334,2]
[371662017,1752381055835,-460.0,0.00020334,2]
[371662019,1752381055844,-460.0,0.00020334,2]
[371662021,1752381055854,-468.7024325,0.00020334,2]
[371662023,1752381055864,-460.0,0.00020334,2]
[371662025,1752381055873,-151.0,0.00020335,2]
[371662027,1752381055882,-290.144009,0.00020335,2]
[371662029,1752381055892,-151.0,0.00020335,2]
[371662031,1752381055902,-387.08,0.00020344,2]
[371662033,1752381055911,-163.725809,0.00020387,2]
[371662035,1752381055920,-1159.48,0.00020388,2]
[371662037,1752381055930,-460.0,0.00020388,2]
[371662039,1752381055939,-1032.33,0.00020388,2]
[371662041,1752381055949,-598.66,0.00020388,2]
[371662043,1752381055958,-460.0,0.00020388,2]
[371662045,1752381055967,-525.9,0.00020388,2]
[371662047,1752381055977,-460.0,0.00020388,2]
[371662049,1752381055987,-569.0,0.00020388,2]
[371662051,1752381055996,-500.99453972,0.00020388,2]
[371662053,1752381056005,-460.0,0.00020389,2]
[371662055,1752381056015,-460.0,0.00020389,2]
[371662057,1752381056024,-460.0,0.00020389,2]
[371662059,1752381056033,-211.75334323,0.00020389,2]
[371662061,1752381056043,-460.0,0.00020389,2]
[371662063,1752381056052,-460.0,0.00020389,2]
[371662065,1752381056061,-460.0,0.00020389,2]
[371662067,1752381056070,-460.0,0.00020389,2]
[371662069,1752381056079,-460.0,0.00020389,2]
[371662071,1752381056089,-432.40397871,0.00020389,2]
[371662073,1752381056098,-460.0,0.00020389,2]
[371662075,1752381056114,-460.0,0.0002039,2]
[371662077,1752381056124,-460.0,0.0002039,2]
[371662079,1752381056133,-460.0,0.0002039,2]
[371662082,1752381056142,-460.0,0.0002039,2]
[371662084,1752381056151,-1610.1,0.0002039,2]
[371662086,1752381056161,-460.0,0.0002039,2]
[371662088,1752381056170,-460.0,0.0002039,2]
[371662090,1752381056179,-460.0,0.0002039,2]
[371662092,1752381056189,-552.32,0.0002039,2]
[371662094,1752381056198,-460.0,0.0002039,2]
[371662096,1752381056207,-1164.25,0.0002039,2]
[371662098,1752381056217,-419.44985063,0.0002039,2]
[371662100,1752381056227,-460.0,0.0002039,2]
[371662102,1752381056238,-1183.95,0.0002039,2]
[371662104,1752381056248,-4998.64479826,0.000204,2]
[371662155,1752381056743,-770.45125457,0.000169,2]
[371662158,1752381056753,-186.15,0.00017982,2]
[371662160,1752381056762,-460.0,0.00018195,2]
[371662162,1752381056772,-275.27428047,0.00018196,2]
[371662164,1752381056782,-164.8148807,0.00018197,2]
[371662166,1752381056791,-416.24309761,0.00018197,2]
[371662168,1752381056801,-460.0,0.00018469,2]
[371662170,1752381056811,-117.42648665,0.00018699,2]
[371662172,1752381056824,-1181.283735,0.00018699,2]
[371662174,1752381056834,-460.0,0.00018743,2]
[371662176,1752381056844,-248.2,0.00018764,2]
[371662178,1752381056854,-310.25,0.00019545,2]
[371662181,1752381056864,-151.0,0.00019889,2]
[371662183,1752381056874,-3417.60728895,0.000204,2]
[371672744,1752381303113,670.0,0.0001601,2]
[371672745,1752381527564,320.21418035,0.00016071,2]
[371672746,1752381527596,450.32196884,0.00016071,2]
[371672748,1752381613757,352.294775,0.00013699,2]
[371672757,1752382033874,770.536149,0.00016277,2]
[371672804,1752382079697,161.03,0.00015912,2]
[371672825,1752382232709,-578.13243782,0.00018092,2]
[371672827,1752382234860,152.83,0.00016234,2]
[371672850,1752382238355,-191.04,0.0001691,2]
[371672851,1752382238366,-229.24,0.00017586,2]
[371672852,1752382238375,-192.40371118,0.00018092,2]
[371672853,1752382238384,-368.61077056,0.00018094,2]
[371672854,1752382238394,-510.87483833,0.00018173,2]
[371672855,1752382238403,-500.0,0.00018173,2]
[371672856,1752382238412,-300.0,0.00018192,2]
[371672857,1752382238421,-460.0,0.00018193,2]
[371672858,1752382238431,-460.0,0.00018193,2]
[371672859,1752382238440,-460.0,0.00018193,2]
[371672860,1752382238449,-460.0,0.00018193,2]
[371672861,1752382238459,-466.38481006,0.00018193,2]
[371672862,1752382238468,-460.0,0.00018193,2]
[371672863,1752382238477,-460.0,0.00018193,2]
[371672864,1752382238487,-460.0,0.00018193,2]
[371672865,1752382238497,-460.0,0.00018193,2]
[371672866,1752382238506,-1426.51,0.00018193,2]
[371672867,1752382238515,-460.0,0.00018193,2]
[371672868,1752382238525,-460.0,0.00018193,2]
[371672869,1752382238534,-821.59,0.00018193,2]
[371672870,1752382238545,-460.0,0.00018193,2]
[371672871,1752382238554,-462.91079892,0.00018193,2]
[371672872,1752382238563,-460.0,0.00018193,2]
[371672874,1752382238573,-452.33388712,0.00018193,2]
[371672876,1752382238582,-460.0,0.00018193,2]
[371672878,1752382238592,-460.0,0.00018193,2]
[371672880,1752382238602,-474.24551814,0.00018193,2]
[371672882,1752382238611,-460.0,0.00018194,2]
[371672884,1752382238621,-460.0,0.00018194,2]
[371672886,1752382238630,-394.12528556,0.00018194,2]
[371672888,1752382238640,-460.0,0.00018194,2]
[371672890,1752382238650,-460.0,0.00018194,2]
[371672892,1752382238659,-460.0,0.00018194,2]
[371672894,1752382238669,-460.0,0.00018194,2]
[371672896,1752382238679,-460.0,0.00018194,2]
[371672898,1752382238688,-330.8887559,0.00018194,2]
[371672900,1752382238698,-463.27370372,0.00018194,2]
[371672902,1752382238708,-460.0,0.00018194,2]
[371672904,1752382238718,-500.0,0.00018194,2]
[371672906,1752382238728,-464.37222768,0.00018194,2]
[371672908,1752382238741,-460.0,0.00018194,2]
[371672910,1752382238751,-460.0,0.00018194,2]
[371672912,1752382238760,-460.0,0.00018194,2]
[371672914,1752382238770,-460.0,0.00018194,2]
[371672916,1752382238782,-460.0,0.00018194,2]
[371672918,1752382238791,-592.3358631,0.00018194,2]
[371672920,1752382238801,-460.0,0.00018194,2]
[371672922,1752382238812,-460.0,0.00018194,2]
[371672924,1752382238822,-460.0,0.00018194,2]
[371672927,1752382238831,-460.0,0.00018194,2]
[371672928,1752382238840,-460.0,0.00018194,2]
[371672931,1752382238850,-460.0,0.00018194,2]
[371672932,1752382238859,-460.0,0.00018194,2]
[371672935,1752382238870,-460.0,0.00018194,2]
[371672937,1752382238880,-460.0,0.00018194,2]
[371672939,1752382238889,-460.0,0.00018194,2]
[371672941,1752382238900,-460.0,0.00018194,2]
[371672942,1752382238909,-533.9671732,0.00018194,2]
[371672945,1752382238919,-460.0,0.00018194,2]
[371672947,1752382238929,-460.0,0.00018194,2]
[371672949,1752382238938,-460.0,0.00018194,2]
[371672951,1752382238947,-460.0,0.00018194,2]
[371672952,1752382238956,-159.79213796,0.00018194,2]
[371672954,1752382238966,-463.16841288,0.00018194,2]
[371672956,1752382238976,-460.0,0.00018194,2]
[371672959,1752382238986,-460.0,0.00018194,2]
[371672961,1752382238996,-460.0,0.00018194,2]
[371672963,1752382239006,-607.19243337,0.00018194,2]
[371672965,1752382239016,-460.0,0.00018194,2]
[371672967,1752382239026,-463.0442464,0.00018194,2]
[371672969,1752382239035,-460.0,0.00018194,2]
[371672971,1752382239044,-460.0,0.00018194,2]
[371672973,1752382239054,-460.0,0.00018194,2]
[371672975,1752382239065,-460.0,0.00018194,2]
[371672977,1752382239075,-460.0,0.00018194,2]
[371672979,1752382239084,-460.0,0.00018194,2]
[371672981,1752382239094,-460.0,0.00018194,2]
[371672983,1752382239103,-460.0,0.00018194,2]
[371672985,1752382239113,-460.0,0.00018194,2]
[371672987,1752382239123,-460.0,0.00018194,2]
[371672989,1752382239132,-460.0,0.00018194,2]
[371672991,1752382239141,-460.0,0.00018194,2]
[371672993,1752382239151,-460.0,0.00018194,2]
[371672995,1752382239160,-460.0,0.00018194,2]
[371672997,1752382239169,-732.25,0.00018194,2]
[371672999,1752382239178,-471.2044708,0.00018194,2]
[371673001,1752382239188,-588.44,0.00018194,2]
[371673003,1752382239197,-461.28739315,0.00018194,2]
[371673005,1752382239206,-460.0,0.00018194,2]
[371673007,1752382239215,-460.0,0.00018194,2]
[371673009,1752382239225,-460.0,0.00018194,2]
[371673011,1752382239235,-513.10647352,0.00018194,2]
[371673013,1752382239245,-460.0,0.00018194,2]
[371673015,1752382239254,-153.04124683,0.00018194,2]
[371673017,1752382239263,-746.82,0.00018194,2]
[371673019,1752382239272,-460.0,0.00018194,2]
[371673021,1752382239281,-460.0,0.00018194,2]
[371673023,1752382239291,-460.0,0.00018194,2]
[371673025,1752382239300,-460.0,0.00018194,2]
[371673027,1752382239310,-460.34,0.00018194,2]
[371673029,1752382239321,-460.0,0.00018194,2]
[371673031,1752382239330,-460.0,0.00018194,2]
[371673033,1752382239339,-460.0,0.00018194,2]
[371673036,1752382239350,-760.35,0.00018194,2]
[371673038,1752382239363,-460.0,0.00018194,2]
[371673040,1752382239375,-460.0,0.00018194,2]
[371673043,1752382239388,-460.0,0.00018194,2]
[371673045,1752382239400,-460.0,0.00018194,2]
[371673047,1752382239412,-460.0,0.00018194,2]
[371673050,1752382239425,-460.0,0.00018194,2]
[371673052,1752382239435,-460.0,0.00018194,2]
[371673054,1752382239445,-460.0,0.00018194,2]
[371673056,1752382239455,-460.0,0.00018194,2]
[371673058,1752382239467,-460.0,0.00018194,2]
[371673060,1752382239478,-460.0,0.00018194,2]
[371673062,1752382239489,-460.0,0.00018194,2]
[371673065,1752382239500,-460.0,0.00018194,2]
[371673067,1752382239512,-460.0,0.00018194,2]
[371673069,1752382239523,-460.0,0.00018194,2]
[371673071,1752382239535,-460.0,0.00018194,2]
[371673074,1752382239548,-460.0,0.00018194,2]
[371673076,1752382239561,-460.0,0.00018194,2]
[371673078,1752382239573,-416.31751771,0.00018194,2]
[371673081,1752382239585,-460.0,0.00018194,2]
[371673083,1752382239596,-470.77,0.00018194,2]
[371673085,1752382239608,-460.0,0.00018194,2]
[371673087,1752382239620,-1141.24,0.00018194,2]
[371673090,1752382239632,-460.0,0.00018194,2]
[371673092,1752382239642,-509.50857048,0.00018194,2]
[371673094,1752382239653,-500.0,0.00018194,2]
[371673096,1752382239665,-500.0,0.00018194,2]
[371673098,1752382239678,-500.0,0.00018194,2]
[371673101,1752382239693,-460.0,0.00018194,2]
[371673103,1752382239703,-460.0,0.00018194,2]
[371673105,1752382239714,-460.0,0.00018194,2]
[371673107,1752382239725,-460.0,0.00018194,2]
[371673109,1752382239740,-460.0,0.00018194,2]
[371673112,1752382239751,-460.0,0.00018194,2]
[371673114,1752382239762,-1538.41,0.00018194,2]
[371673116,1752382239773,-460.0,0.00018194,2]
[371673118,1752382239784,-460.0,0.00018194,2]
[371673120,1752382239794,-461.82233734,0.00018194,2]
[371673122,1752382239803,-460.0,0.00018194,2]
[371673124,1752382239813,-322.6075035,0.00018194,2]
[371673126,1752382239823,-469.22124726,0.00018194,2]
[371673129,1752382239834,-435.22296729,0.00018194,2]
[371673131,1752382239843,-460.0,0.00018194,2]
[371673134,1752382239854,-460.0,0.00018194,2]
[371673136,1752382239864,-460.0,0.00018194,2]
[371673138,1752382239876,-460.0,0.00018195,2]
[371673140,1752382239886,-460.0,0.00018195,2]
[371673143,1752382239898,-461.172927,0.00018195,2]
[371673146,1752382239910,-460.0,0.00018195,2]
[371673148,1752382239920,-380.0,0.00018195,2]
[371673151,1752382239931,-413.82952829,0.00018195,2]
[371673154,1752382239943,-462.1716682,0.00018195,2]
[371673158,1752382239954,-460.0,0.00018195,2]
[371673162,1752382239965,-463.3783127,0.00018195,2]
[371673165,1752382239977,-460.0,0.00018195,2]
[371673168,1752382239988,-460.0,0.00018195,2]
[371673173,1752382240000,-460.0,0.00018195,2]
[371673176,1752382240013,-460.0,0.00018195,2]
[371673179,1752382240023,-464.75304272,0.00018195,2]
[371673182,1752382240034,-559.49,0.00018195,2]
[371673185,1752382240044,-460.0,0.00018195,2]
[371673188,1752382240054,-460.0,0.00018195,2]
[371673191,1752382240063,-460.0,0.00018195,2]
[371673194,1752382240073,-460.0,0.00018195,2]
[371673198,1752382240085,-460.0,0.00018195,2]
[371673202,1752382240096,-460.0,0.00018195,2]
[371673205,1752382240108,-460.0,0.00018195,2]
[371673208,1752382240120,-460.0,0.00018195,2]
[371673212,1752382240131,-460.0,0.00018195,2]
[371673216,1752382240142,-460.0,0.00018195,2]
[371673219,1752382240153,-460.0,0.00018195,2]
[371673222,1752382240164,-460.0,0.00018195,2]
[371673225,1752382240174,-500.0,0.00018195,2]
[371673228,1752382240184,-460.0,0.00018195,2]
[371673231,1752382240195,-460.0,0.00018195,2]
[371673235,1752382240205,-460.0,0.00018195,2]
[371673238,1752382240216,-460.0,0.00018195,2]
[371673241,1752382240229,-461.56457386,0.00018195,2]
[371673244,1752382240240,-460.0,0.00018195,2]
[371673248,1752382240251,-460.0,0.00018195,2]
[371673251,1752382240261,-460.0,0.00018195,2]
[371673254,1752382240272,-460.27318378,0.00018195,2]
[371673256,1752382240282,-462.20585541,0.00018195,2]
[371673258,1752382240293,-223.54028987,0.00018195,2]
[371673260,1752382240303,-460.0,0.00018195,2]
[371673262,1752382240313,-460.0,0.00018195,2]
[371673264,1752382240324,-460.0,0.00018195,2]
[371673266,1752382240336,-500.0,0.00018195,2]
[371673269,1752382240347,-460.0,0.00018195,2]
[371673271,1752382240357,-460.0,0.00018195,2]
[371673273,1752382240367,-302.19668117,0.00018195,2]
[371673275,1752382240378,-460.0,0.00018195,2]
[371673277,1752382240388,-460.0,0.00018195,2]
[371673279,1752382240399,-460.0,0.00018195,2]
[371673281,1752382240409,-460.0,0.00018195,2]
[371673283,1752382240419,-460.0,0.00018195,2]
[371673285,1752382240430,-460.0,0.00018195,2]
[371673288,1752382240440,-460.0,0.00018195,2]
[371673290,1752382240452,-460.0,0.00018195,2]
[371673292,1752382240463,-460.0,0.00018195,2]
[371673294,1752382240474,-460.0,0.00018195,2]
[371673296,1752382240485,-461.78491471,0.00018195,2]
[371673298,1752382240496,-560.31337563,0.00018195,2]
[371673300,1752382240506,-460.0,0.00018195,2]
[371673302,1752382240516,-460.0,0.00018195,2]
[371673305,1752382240529,-460.0,0.00018195,2]
[371673307,1752382240543,-460.0,0.00018195,2]
[371673309,1752382240554,-460.0,0.00018195,2]
[371673311,1752382240564,-460.0,0.00018195,2]
[371673313,1752382240575,-462.65789303,0.00018195,2]
[371673315,1752382240586,-515.12,0.00018195,2]
[371673317,1752382240596,-460.0,0.00018195,2]
[371673319,1752382240607,-474.96844017,0.00018195,2]
[371673321,1752382240618,-460.0,0.00018195,2]
[371673323,1752382240629,-455.12051091,0.00018195,2]
[371673325,1752382240639,-469.32885845,0.00018195,2]
[371673328,1752382240649,-460.0,0.00018195,2]
[371673330,1752382240661,-460.0,0.00018195,2]
[371673332,1752382240671,-1511.73,0.00018195,2]
[371673334,1752382240681,-458.48552568,0.00018195,2]
[371673336,1752382240693,-460.0,0.00018195,2]
[371673338,1752382240703,-460.0,0.00018195,2]
[371673340,1752382240714,-472.52153856,0.00018195,2]
[371673342,1752382240725,-460.0,0.00018195,2]
[371673344,1752382240739,-465.24978433,0.00018195,2]
[371673346,1752382240749,-460.0,0.00018195,2]
[371673349,1752382240760,-460.0,0.00018195,2]
[371673351,1752382240770,-460.0,0.00018195,2]
[371673353,1752382240782,-460.0,0.00018195,2]
[371673355,1752382240791,-460.0,0.00018195,2]
[371673357,1752382240802,-460.0,0.00018195,2]
[371673359,1752382240814,-460.0,0.00018195,2]
[371673361,1752382240825,-460.0,0.00018195,2]
[371673363,1752382240835,-460.0,0.00018195,2]
[371673366,1752382240846,-576.45626025,0.00018195,2]
[371673368,1752382240857,-274.46219048,0.00018195,2]
[371673370,1752382240867,-460.0,0.00018195,2]
[371673372,1752382240877,-500.0,0.00018196,2]
[371673374,1752382240888,-500.0,0.00018196,2]
[371673376,1752382240899,-500.0,0.00018196,2]
[371673378,1752382240909,-500.0,0.00018196,2]
[371673380,1752382240920,-500.0,0.00018196,2]
[371673382,1752382240930,-151.220217,0.00018197,2]
[371673384,1752382240941,-163.466457,0.00018197,2]
[371673386,1752382240951,-462.44967919,0.00018197,2]
[371673389,1752382240962,-151.0,0.00018197,2]
[371673391,1752382240972,-151.0,0.00018197,2]
[371673393,1752382240984,-462.66188419,0.00018197,2]
[371673395,1752382240995,-152.730809,0.00018197,2]
[371673397,1752382241005,-151.0,0.00018197,2]
[371673399,1752382241016,-152.106336,0.00018197,2]
[371673402,1752382241026,-462.54536904,0.00018197,2]
[371673421,1752382241197,-466.79425408,0.00018197,2]
[371673424,1752382241214,-460.0,0.00018197,2]
[371673426,1752382241225,-273.22346454,0.00018197,2]
[371673428,1752382241235,-462.86731609,0.00018197,2]
[371673430,1752382241245,-460.0,0.00018197,2]
[371673432,1752382241254,-460.0,0.00018197,2]
[371673434,1752382241264,-460.93235174,0.00018197,2]
[371673436,1752382241273,-460.0,0.00018197,2]
[371673438,1752382241283,-524.7857316,0.00018197,2]
[371673440,1752382241292,-460.0,0.00018197,2]
[371673442,1752382241302,-461.32924323,0.00018197,2]
[371673444,1752382241311,-200.08594791,0.00018197,2]
[371673446,1752382241321,-460.0,0.00018197,2]
[371673448,1752382241330,-500.0,0.00018197,2]
[371673450,1752382241339,-462.36846764,0.00018197,2]
[371673452,1752382241348,-460.0,0.00018197,2]
[371673454,1752382241358,-460.0,0.00018197,2]
[371673456,1752382241368,-460.0,0.00018197,2]
[371673458,1752382241377,-460.0,0.00018197,2]
[371673460,1752382241387,-465.723395,0.00018197,2]
[371673462,1752382241396,-151.0,0.00018197,2]
[371673464,1752382241406,-151.0,0.00018197,2]
[371673466,1752382241415,-151.0,0.00018197,2]
[371673468,1752382241425,-151.0,0.00018197,2]
[371673471,1752382241434,-151.0,0.00018197,2]
[371673473,1752382241443,-151.0,0.00018197,2]
[371673475,1752382241453,-151.0,0.00018197,2]
[371673477,1752382241462,-151.0,0.00018197,2]
[371673478,1752382241472,-182.981194,0.00018198,2]
[371673480,1752382241482,-151.0,0.00018198,2]
[371673482,1752382241491,-151.0,0.00018198,2]
[371673485,1752382241501,-151.0,0.00018198,2]
[371673487,1752382241510,-151.0,0.00018198,2]
[371673489,1752382241520,-151.0,0.00018198,2]
[371673491,1752382241529,-151.0,0.00018198,2]
[371673493,1752382241539,-151.0,0.00018198,2]
[371673495,1752382241550,-151.0,0.00018198,2]
[371673497,1752382241559,-151.0,0.00018198,2]
[371673499,1752382241569,-151.0,0.00018198,2]
[371673501,1752382241578,-151.0,0.00018198,2]
[371673503,1752382241587,-151.0,0.00018198,2]
[371673504,1752382241596,-151.0,0.00018198,2]
[371673506,1752382241605,-151.0,0.00018198,2]
[371673509,1752382241614,-151.0,0.00018198,2]
[371673510,1752382241624,-151.0,0.00018198,2]
[371673512,1752382241633,-151.0,0.00018198,2]
[371673515,1752382241643,-151.0,0.00018198,2]
[371673516,1752382241652,-165.330742,0.00018198,2]
[371673519,1752382241661,-151.589752,0.00018198,2]
[371673520,1752382241671,-151.0,0.00018199,2]
[371673523,1752382241680,-151.0,0.00018199,2]
[371673524,1752382241689,-151.0,0.00018199,2]
[371673526,1752382241698,-151.0,0.00018199,2]
[371673528,1752382241707,-267.45,0.00018263,2]
[371673530,1752382241717,-770.536149,0.00018388,2]
[371673532,1752382241726,-183.6,0.00018458,3]
[371673535,1752382241740,-550.8,0.00018458,3]
[371673536,1752382241750,-460.0,0.00018467,2]
[371673538,1752382241759,-1426.51,0.00018467,2]
[371673540,1752382241768,-500.0,0.00018467,2]
[371673542,1752382241777,-460.0,0.00018467,2]
[371673544,1752382241787,-460.0,0.00018467,2]
[371673547,1752382241796,-821.59,0.00018467,2]
[371673549,1752382241807,-460.0,0.00018467,2]
[371673550,1752382241816,-162.08290879,0.00018467,2]
[371673553,1752382241826,-460.0,0.00018468,2]
[371673554,1752382241835,-460.0,0.00018468,2]
[371673556,1752382241845,-470.07459805,0.00018468,2]
[371673558,1752382241855,-460.0,0.00018468,2]
[371673560,1752382241864,-500.0,0.00018468,2]
[371673562,1752382241873,-460.0,0.00018468,2]
[371673565,1752382241884,-367.0149119,0.00018468,2]
[371673566,1752382241893,-460.0,0.00018468,2]
[371673569,1752382241903,-460.0,0.00018468,2]
[371673571,1752382241912,-460.0,0.00018468,2]
[371673573,1752382241923,-460.0,0.00018468,2]
[371673575,1752382241934,-460.0,0.00018468,2]
[371673577,1752382241945,-460.0,0.00018468,2]
[371673579,1752382241953,-460.0,0.00018468,2]
[371673581,1752382241962,-732.25,0.00018468,2]
[371673583,1752382241972,-460.0,0.00018468,2]
[371673585,1752382241981,-746.82,0.00018468,2]
[371673586,1752382241991,-460.0,0.00018468,2]
[371673588,1752382242000,-460.0,0.00018468,2]
[371673590,1752382242010,-760.35,0.00018468,2]
[371673592,1752382242020,-460.0,0.00018468,2]
[371673594,1752382242031,-460.0,0.00018468,2]
[371673596,1752382242040,-466.46551367,0.00018468,2]
[371673598,1752382242049,-460.0,0.00018468,2]
[371673600,1752382242059,-460.0,0.00018468,2]
[371673602,1752382242069,-460.0,0.00018468,2]
[371673604,1752382242078,-460.0,0.00018468,2]
[371673606,1752382242087,-460.0,0.00018468,2]
[371673608,1752382242096,-460.0,0.00018468,2]
[371673610,1752382242105,-460.0,0.00018468,2]
[371673612,1752382242115,-460.0,0.00018468,2]
[371673614,1752382242124,-460.0,0.00018468,2]
[371673616,1752382242134,-460.0,0.00018468,2]
[371673618,1752382242143,-1141.24,0.00018468,2]
[371673620,1752382242152,-460.0,0.00018468,2]
[371673622,1752382242162,-500.0,0.00018468,2]
[371673624,1752382242172,-460.0,0.00018468,2]
[371673626,1752382242180,-467.12762371,0.00018468,2]
[371673628,1752382242189,-460.0,0.00018468,2]
[371673630,1752382242199,-460.0,0.00018468,2]
[371673632,1752382242207,-460.0,0.00018468,2]
[371673634,1752382242216,-1538.41,0.00018468,2]
[371673636,1752382242226,-460.0,0.00018468,2]
[371673638,1752382242236,-460.0,0.00018468,2]
[371673640,1752382242245,-460.0,0.00018468,2]
[371673642,1752382242254,-460.0,0.00018468,2]
[371673644,1752382242264,-461.88702062,0.00018469,2]
[371673646,1752382242273,-559.49,0.00018469,2]
[371673648,1752382242282,-460.0,0.00018469,2]
[371673650,1752382242292,-463.85406198,0.00018469,2]
[371673652,1752382242301,-460.0,0.00018469,2]
[371673654,1752382242310,-460.0,0.00018469,2]
[371673656,1752382242319,-460.0,0.00018469,2]
[371673658,1752382242329,-460.0,0.00018469,2]
[371673660,1752382242338,-460.0,0.00018469,2]
[371673662,1752382242348,-460.0,0.00018469,2]
[371673664,1752382242357,-460.0,0.00018469,2]
[371673666,1752382242366,-460.0,0.00018469,2]
[371673668,1752382242375,-460.0,0.00018469,2]
[371673670,1752382242384,-474.09793417,0.00018469,2]
[371673672,1752382242393,-460.0,0.00018469,2]
[371673674,1752382242403,-460.0,0.00018469,2]
[371673676,1752382242412,-460.0,0.00018469,2]
[371673678,1752382242422,-460.0,0.00018469,2]
[371673680,1752382242432,-460.0,0.00018469,2]
[371673682,1752382242441,-500.0,0.00018469,2]
[371673684,1752382242451,-460.0,0.00018469,2]
[371673686,1752382242461,-460.0,0.00018469,2]
[371673688,1752382242470,-460.0,0.00018469,2]
[371673690,1752382242480,-460.0,0.00018469,2]
[371673692,1752382242489,-467.88184889,0.00018469,2]
[371673694,1752382242499,-460.0,0.00018469,2]
[371673696,1752382242508,-460.0,0.00018469,2]
[371673698,1752382242517,-430.60370641,0.00018469,2]
[371673700,1752382242526,-460.0,0.00018469,2]
[371673702,1752382242535,-460.0,0.00018469,2]
[371673704,1752382242544,-460.0,0.00018469,2]
[371673705,1752382242554,-460.0,0.00018469,2]
[371673706,1752382242563,-453.1084689,0.00018469,2]
[371673707,1752382242581,-6.8915311,0.00018469,2]
[371673708,1752382242591,-460.0,0.00018469,2]
[371673709,1752382242600,-542.90625233,0.00018469,2]
[371673710,1752382242610,-471.69979971,0.00018469,2]
[371673711,1752382242619,-460.0,0.00018469,2]
[371673712,1752382242629,-1511.73,0.00018469,2]
[371673713,1752382242638,-460.0,0.00018469,2]
[371673714,1752382242648,-460.0,0.00018469,2]
[371673716,1752382242657,-460.0,0.00018469,2]
[371673717,1752382242667,-460.0,0.00018469,2]
[371673719,1752382242676,-467.22837519,0.00018469,2]
[371673720,1752382242685,-134.98814245,0.00018469,2]
[371673735,1752382242872,-460.0,0.00018193,2]
[371673737,1752382242882,-350.85,0.00018467,2]
[371673739,1752382242891,-325.01185755,0.00018469,2]
[371673741,1752382242900,-361.83041447,0.00018469,2]
[371673744,1752382242911,-104.67450399,0.00018469,2]
[371673745,1752382242920,-460.0,0.00018469,2]
[371673748,1752382242930,-460.0,0.00018469,2]
[371673750,1752382242939,-587.13620506,0.00018469,2]